bitfinex-derivatives/quotes_SOLF0:USTF0_20250901
["timestamp","ask_amount","ask_price","bid_price","bid_amount"]
[1756768290814,7.5,196.09,196.03,4.51368562]
[1756768291020,7.5,196.09,196.04,12.63368562]
[1756768291219,7.5,196.09,196.05,4.51368562]
[1756768291418,7.5,196.09,196.06,4.51368562]
[1756768291617,7.5,196.09,196.04,8.12]
[1756768291818,7.5,196.09,196.05,4.51194968]
[1756768292120,7.5,196.09,196.04,8.12]
[1756768294221,87.1,196.1,195.97,8.12]
[1756768294417,87.1,196.1,195.99,8.12]
[1756768297128,101.22,196.11,195.99,8.12]
[1756768297327,7.5,196.11,195.99,8.12]
[1756768297832,8.72,196.13,196.01,3.6615194]
[1756768298021,8.72,196.13,196.02,8.3]
[1756768298726,7.85,196.23,196.07,3.6615194]
[1756768299029,7.85,196.23,196.13,8.3]
[1756768299329,93.16665246,196.3,196.15,3.6615194]
[1756768299524,7.85,196.29,196.16,8.3]
[1756768308037,7.85,196.29,196.19,2.2859237]
[1756768308330,7.85,196.29,196.2,8.3]
[1756768308733,7.85,196.29,196.22,2.2859237]
[1756768308939,7.85,196.29,196.23,8.3]
[1756768311431,7.85,196.29,196.17,8.3]
[1756768313541,11.50644079,196.29,196.12,8.3]
[1756768316439,3.65644079,196.26,196.12,8.3]
[1756768316638,7.85,196.24,196.12,8.3]
[1756768320745,12.04379483,196.44,196.1,3.65644079]
[1756768320746,15.31,196.4,196.18,3.65644079]
[1756768321042,7.85,196.34,196.19,8.3]
[1756768324750,7.85,196.34,196.13,11.86]
[1756768324751,7.85,196.4,196.26,8.3]
[1756768325251,7.85,196.4,196.28,3.65644079]
[1756768325543,7.85,196.4,196.29,8.3]
[1756768326444,7.85,196.4,196.31,3.65644079]
[1756768326656,342.82,196.41,196.32,8.3]
[1756768327949,66.3,196.42,196.32,8.3]
[1756768328846,8.1,196.52,196.37,3.65644079]
[1756768329144,8.1,196.52,196.38,7.91]
[1756768329346,8.98615009,196.52,196.38,7.91]
[1756768332345,12.64259088,196.52,196.38,7.91]
[1756768332851,8.1,196.5,196.38,7.91]
[1756768333646,3.65644079,196.49,196.26,7.91]
[1756768333946,131.32,196.51,196.09,111.30990209]
[1756768333947,8.1,196.39,196.28,7.91]
[1756768334146,131.32,196.38,196.28,7.91]
[1756768337053,8.1,196.37,196.25,3.65644079]
[1756768337352,8.1,196.37,196.24,7.91]
[1756768338252,131.36,196.38,196.26,7.91]
[1756768339547,131.36,196.38,196.29,7.91]
[1756768339744,139.42,196.41,196.3,3.91599434]
[1756768339948,139.42,196.41,196.29,7.91]
[1756768340144,139.42,196.41,196.3,3.91876818]
[1756768340347,8.1,196.44,196.32,7.91]
[1756768340544,8.1,196.44,196.33,3.91695843]
[1756768340749,8.1,196.44,196.34,7.91]
[1756768344059,8.1,196.44,196.3,7.91]
[1756768344355,8.1,196.44,196.31,3.92568628]
[1756768344550,8.1,196.44,196.3,7.91]
[1756768344751,8.1,196.44,196.31,3.92559595]
[1756768344956,8.1,196.44,196.3,7.91]
[1756768345160,8.1,196.44,196.31,3.92544702]
[1756768345354,8.1,196.38,196.25,7.91]
[1756768345551,3.65644079,196.39,196.26,3.92775287]
[1756768345552,8.1,196.36,196.26,3.92775287]
[1756768345751,8.1,196.36,196.25,7.91]
[1756768347857,11.75644079,196.36,196.18,4.25020202]
[1756768348056,8.1,196.32,196.21,7.91]
[1756768349658,3.65644079,196.3,196.21,7.91]
[1756768349857,8.1,196.29,196.21,7.91]
[1756768350256,34.84,196.29,196.21,7.91]
[1756768354466,34.84,196.29,196.14,7.91]
[1756768354668,34.84,196.29,196.15,1.81781522]
[1756768354962,34.84,196.29,196.14,7.91]
[1756768355166,34.84,196.29,196.16,7.91]
[1756768356770,8.1,196.29,196.16,7.91]
[1756768356971,8.1,196.36,196.16,7.91]
[1756768357172,8.1,196.32,196.16,7.91]
[1756768357771,8.1,196.32,196.18,3.65644079]
[1756768357962,66.88,196.32,196.19,7.91]
[1756768359172,8.1,196.32,196.19,7.91]
[1756768361372,11.75644079,196.32,196.19,7.91]
[1756768363575,8.1,196.32,196.19,7.91]
[1756768363773,11.75644079,196.32,196.16,8.19]
[1756768363973,107.74,196.33,196.16,8.19]
[1756768363974,8.19,196.28,196.16,8.19]
[1756768364375,8.19,196.28,196.15,3.65644079]
[1756768364376,8.19,196.25,196.15,8.19]
[1756768364582,75.55,196.25,196.15,8.19]
[1756768364773,8.19,196.25,196.15,8.19]
[1756768364977,8.19,196.25,196.17,8.19]
[1756768366282,48.45,196.32,196.2,8.19]
[1756768370184,8.19,196.32,196.2,8.19]
[1756768370386,8.19,196.32,196.22,3.65644079]
[1756768370684,8.19,196.32,196.23,8.19]
[1756768377384,8.19,196.36,196.25,8.19]
[1756768377587,8.19,196.36,196.25,11.84644079]
[1756768379383,8.19,196.38,196.25,8.19]
[1756768380391,11.84644079,196.38,196.25,8.19]
[1756768380784,8.19,196.38,196.25,8.19]
[1756768380989,8.19,196.38,196.27,8.19]
[1756768382082,8.19,196.38,196.28,2.28385874]
[1756768382291,8.19,196.38,196.29,8.19]
[1756768382486,8.19,196.38,196.31,2.28385874]
[1756768386500,8.19,196.38,196.29,8.19]
[1756768386701,8.19,196.38,196.28,2.28385874]
[1756768386996,8.19,196.38,196.26,8.19]
[1756768387600,8.19,196.38,196.28,2.28385874]
[1756768387792,8.19,196.38,196.29,8.19]
[1756768387989,129.54,196.37,196.29,8.19]
[1756768388196,8.16,196.36,196.29,8.19]
[1756768388499,8.16,196.36,196.28,2.28385874]
[1756768389199,8.16,196.36,196.25,10.13385874]
[1756768389399,8.16,196.33,196.25,7.85]
[1756768391601,8.16,196.47,196.33,7.85]
[1756768391800,8.16,196.47,196.3,2.28385874]
[1756768391801,8.16,196.47,196.4,2.28385874]
[1756768392306,8.16,196.47,196.37,10.13385874]
[1756768392502,8.16,196.45,196.37,10.13385874]
[1756768392699,8.16,196.45,196.37,2.28385874]
[1756768394206,8.16,196.45,196.33,11.50155573]
[1756768394408,3.65155573,196.47,196.33,7.85]
[1756768394709,8.16,196.43,196.29,7.85]
[1756768394907,3.65155573,196.44,196.29,7.85]
[1756768394908,8.16,196.41,196.29,7.85]
[1756768399811,8.16,196.41,196.31,7.85]
[1756768402514,8.16,196.48,196.31,7.85]
[1756768402709,16.17615009,196.52,196.31,7.85]
[1756768402710,8.16,196.46,196.31,7.85]
[1756768406112,8.16,196.46,196.31,4.5842]
[1756768406418,8.16,196.46,196.34,7.85]
[1756768410519,129.2,196.45,196.34,7.85]
[1756768410719,8.16,196.5,196.34,7.85]
[1756768411023,8.16,196.5,196.41,7.85]
[1756768411317,0.88615009,196.52,196.45,3.65155573]
[1756768411519,11.52,196.59,196.46,7.85]
[1756768411722,12.40583429,196.59,196.46,7.85]
[1756768412315,12.40583429,196.59,196.47,3.65155573]
[1756768412517,12.40583429,196.59,196.46,11.50155573]
[1756768413621,3.36,196.59,196.49,3.65155573]
[1756768413917,3.36,196.59,196.5,7.85]
[1756768414723,3.36,196.59,196.51,4.50595704]
[1756768415024,3.36,196.59,196.49,3.65155573]
[1756768415025,3.36,196.59,196.53,7.85]
[1756768415319,8.16,196.58,196.54,4.50595704]
[1756768415519,8.16,196.58,196.55,4.50595704]
[1756768415826,8.16,196.58,196.56,4.50595704]
[1756768416018,3.36,196.59,196.5,7.85]
[1756768416220,46.64,196.63,196.54,7.85]
[1756768416524,130.3,196.63,196.55,4.50195548]
[1756768416727,130.3,196.63,196.56,4.50195548]
[1756768416920,130.3,196.63,196.57,4.50195548]
[1756768417128,130.3,196.63,196.58,4.50195548]
[1756768417323,138.46,196.63,196.54,7.85]
[1756768417618,138.46,196.63,196.55,4.49397315]
[1756768417818,138.46,196.63,196.56,4.49397315]
[1756768418028,138.46,196.63,196.54,7.85]
[1756768418226,138.46,196.63,196.55,4.49410199]
[1756768418420,138.46,196.63,196.56,4.49410199]
[1756768418615,138.46,196.63,196.54,7.85]
[1756768418815,138.46,196.63,196.55,4.4914992]
[1756768419036,138.46,196.63,196.51,11.73155573]
[1756768419331,138.46,196.63,196.52,4.49182277]
[1756768419529,7.94,196.6,196.53,4.49182277]
[1756768419730,7.94,196.6,196.47,8.08]
[1756768420021,7.94,196.6,196.48,4.4909978]
[1756768420324,7.94,196.6,196.49,4.4909978]
[1756768420527,7.94,196.6,196.5,4.4909978]
[1756768420723,7.94,196.6,196.51,4.4909978]
[1756768420929,7.94,196.6,196.52,12.5709978]
[1756768421133,55.66,196.61,196.53,4.4909978]
[1756768421426,63.6,196.61,196.54,4.4909978]
[1756768421624,7.94,196.64,196.56,8.08]
[1756768423423,131.66,196.64,196.56,8.08]
[1756768423622,131.66,196.64,196.57,4.47883968]
[1756768423927,131.66,196.64,196.58,4.47883968]
[1756768424129,131.66,196.64,196.59,12.55883968]
[1756768424324,131.66,196.64,196.59,8.08]
[1756768424824,131.66,196.66,196.6,4.47536241]
[1756768425027,131.66,196.66,196.59,8.08]
[1756768425328,131.66,196.66,196.6,4.47506462]
[1756768425527,131.66,196.66,196.59,8.08]
[1756768425722,131.66,196.66,196.6,4.47238323]
[1756768425923,131.66,196.66,196.59,8.08]
[1756768426129,131.66,196.66,196.6,4.47210835]
[1756768426429,131.66,196.66,196.59,8.08]
[1756768427129,7.94,196.65,196.52,11.73155573]
[1756768427330,7.94,196.65,196.53,4.47086725]
[1756768427528,7.94,196.65,196.54,4.47086725]
[1756768427830,7.94,196.65,196.55,4.47086725]
[1756768428133,7.94,196.65,196.56,4.47086725]
[1756768428334,131.5,196.64,196.57,4.47086725]
[1756768428530,131.5,196.64,196.55,8.08]
[1756768428731,131.5,196.64,196.56,4.47117465]
[1756768428926,3.65155573,196.63,196.5,8.08]
[1756768429130,7.94,196.62,196.51,4.47257679]
[1756768429333,7.94,196.62,196.52,4.47257679]
[1756768429529,7.94,196.62,196.5,8.08]
[1756768429729,11.59155573,196.62,196.51,4.47427222]
[1756768429931,3.65155573,196.61,196.5,8.08]
[1756768430130,7.94,196.6,196.51,4.47514564]
[1756768430332,7.94,196.58,196.46,8.08]
[1756768430533,7.94,196.58,196.47,4.47497439]
[1756768430831,7.94,196.58,196.46,8.08]
[1756768430832,7.94,196.58,196.48,4.47497439]
[1756768431035,7.94,196.58,196.49,4.47497439]
[1756768431231,7.94,196.58,196.5,4.47497439]
[1756768431431,7.94,196.58,196.46,8.08]
[1756768431631,7.94,196.58,196.47,4.47630973]
[1756768431825,7.94,196.58,196.48,4.47630973]
[1756768432029,7.94,196.58,196.46,8.08]
[1756768432336,7.94,196.58,196.47,4.47716875]
[1756768432534,7.94,196.58,196.48,4.47716875]
[1756768432835,7.94,196.58,196.49,4.47716875]
[1756768433035,7.94,196.58,196.46,8.08]
[1756768433230,7.94,196.58,196.47,4.4785132]
[1756768433533,131.4,196.57,196.48,4.4785132]
[1756768433733,7.94,196.58,196.49,4.4785132]
[1756768433941,131.38,196.57,196.5,4.47900742]
[1756768434234,7.94,196.58,196.46,8.08]
[1756768434535,62.54,196.57,196.47,4.47936768]
[1756768434832,62.54,196.57,196.48,4.47936768]
[1756768435033,62.54,196.57,196.49,4.47936768]
[1756768435335,62.54,196.57,196.5,4.47936768]
[1756768435534,62.54,196.57,196.51,4.47936768]
[1756768435735,7.94,196.61,196.52,4.47936768]
[1756768435936,121.18,196.56,196.49,8.08]
[1756768436138,121.18,196.56,196.5,4.48057845]
[1756768436433,7.94,196.55,196.51,4.48057845]
[1756768436630,7.94,196.55,196.52,4.48322444]
[1756768436835,7.94,196.55,196.49,8.08]
[1756768437035,121.18,196.56,196.5,4.48352344]
[1756768437237,7.94,196.55,196.51,4.48352344]
[1756768437436,129.12,196.56,196.46,8.08]
[1756768437632,129.12,196.56,196.47,4.48229186]
[1756768437938,129.12,196.56,196.48,4.48229186]
[1756768438235,129.12,196.56,196.49,4.48229186]
[1756768438536,129.12,196.56,196.5,4.4841646]
[1756768438841,7.94,196.55,196.41,8.08]
[1756768439032,7.94,196.55,196.42,4.48445126]
[1756768439228,7.94,196.55,196.43,4.48445126]
[1756768439432,112.42,196.54,196.44,4.48445126]
[1756768439632,112.42,196.54,196.45,4.48445126]
[1756768439837,112.42,196.54,196.46,4.48445126]
[1756768440042,7.94,196.53,196.47,4.48445126]
[1756768440335,112.42,196.54,196.48,4.48445126]
[1756768440540,11.59155573,196.53,196.49,4.48445126]
[1756768440841,131.02,196.52,196.41,8.08]
[1756768441035,131.02,196.52,196.42,4.48791454]
[1756768441234,131.02,196.52,196.43,4.48791454]
[1756768441541,7.94,196.51,196.44,4.48791454]
[1756768441737,7.94,196.51,196.45,4.48791454]
[1756768442038,7.94,196.53,196.46,4.48791454]
[1756768442241,24.88,196.52,196.47,4.48791454]
[1756768442430,7.94,196.51,196.41,8.08]
[1756768442635,7.94,196.51,196.42,4.4903478]
[1756768442832,7.94,196.51,196.43,4.4903478]
[1756768443034,7.94,196.51,196.44,4.4903478]
[1756768443237,7.94,196.51,196.45,4.4903478]
[1756768443435,7.94,196.51,196.46,4.4903478]
[1756768443639,47.46,196.5,196.47,4.4903478]
[1756768443947,47.46,196.5,196.41,8.08]
[1756768444247,47.46,196.5,196.42,4.49241456]
[1756768444437,47.46,196.5,196.43,4.49241456]
[1756768444641,47.46,196.5,196.44,4.49241456]
[1756768444843,7.94,196.54,196.45,4.49241456]
[1756768445144,50.36,196.53,196.46,4.49241456]
[1756768445339,7.94,196.52,196.47,4.49241456]
[1756768445647,7.94,196.5,196.48,4.49241456]
[1756768445844,7.94,196.5,196.49,4.49241456]
[1756768446349,7.94,196.5,196.4,8.08]
[1756768446546,7.94,196.5,196.41,4.49541661]
[1756768446750,7.94,196.5,196.42,4.49541661]
[1756768446948,7.94,196.5,196.43,4.49541661]
[1756768447146,7.94,196.5,196.44,4.49541661]
[1756768447344,33.0,196.51,196.45,4.49541661]
[1756768447545,7.94,196.5,196.46,4.49541661]
[1756768447741,25.06,196.51,196.47,4.49541661]
[1756768447946,8.13,196.5,196.48,4.49541661]
[1756768448146,8.13,196.5,196.4,8.08]
[1756768448347,8.13,196.5,196.41,4.4979779]
[1756768448647,8.13,196.5,196.42,4.4979779]
[1756768448848,8.13,196.5,196.43,4.4979779]
[1756768449146,8.13,196.5,196.44,4.4979779]
[1756768449346,25.06,196.51,196.45,4.4979779]
[1756768449550,8.13,196.5,196.46,4.4979779]
[1756768449752,8.13,196.5,196.47,4.4979779]
[1756768449952,2.28185423,196.49,196.4,8.08]
[1756768450149,2.28185423,196.49,196.41,4.50254878]
[1756768450446,2.28185423,196.46,196.42,4.50254878]
[1756768450646,8.13,196.46,196.43,4.50254878]
[1756768450848,2.28185423,196.47,196.44,4.50254878]
[1756768451152,8.13,196.46,196.35,7.99]
[1756768451355,8.13,196.46,196.36,4.50720051]
[1756768451549,8.13,196.46,196.37,4.50720051]
[1756768451750,8.13,196.46,196.38,4.50720051]
[1756768451951,8.13,196.46,196.39,4.50720051]
[1756768452145,8.13,196.46,196.4,4.50720051]
[1756768452346,8.13,196.47,196.41,4.50720051]
[1756768452542,3.65189602,196.48,196.42,4.50720051]
[1756768452749,11.78189602,196.59,196.44,7.99]
[1756768452949,8.13,196.55,196.45,4.50720051]
[1756768453147,350.27,196.55,196.46,4.50720051]
[1756768453355,131.3,196.54,196.47,4.50720051]
[1756768453555,3.65189602,196.53,196.48,4.50720051]
[1756768453746,8.13,196.51,196.49,4.50720051]
[1756768453950,8.13,196.51,196.44,7.99]
[1756768454155,139.39,196.5,196.45,4.50743085]
[1756768454355,139.39,196.5,196.46,4.50743085]
[1756768454554,139.39,196.5,196.47,4.50743085]
[1756768454849,139.39,196.5,196.48,4.50743085]
[1756768455055,8.13,196.5,196.49,4.50743085]
[1756768455254,139.33,196.5,196.49,4.50743085]
[1756768455555,8.13,196.5,196.49,4.50743085]
[1756768455754,139.27,196.5,196.49,4.50743085]
[1756768455955,8.13,196.5,196.49,4.50743085]
[1756768456150,139.27,196.5,196.49,4.50743085]
[1756768457959,131.12,196.5,196.49,4.50743085]
[1756768458958,139.25,196.5,196.49,4.50743085]
[1756768460456,139.25,196.5,196.44,7.99]
[1756768460656,139.25,196.5,196.45,12.50078702]
[1756768460855,8.13,196.5,196.46,4.51078702]
[1756768461055,8.13,196.5,196.47,4.51091945]
[1756768461258,8.13,196.5,196.48,4.51091945]
[1756768461557,8.13,196.5,196.49,4.51088868]
[1756768461757,138.87,196.5,196.49,4.51088868]
[1756768461959,8.13,196.5,196.49,4.51088868]
[1756768462158,138.87,196.5,196.49,4.51088868]
[1756768462955,138.83,196.5,196.49,4.51088868]
[1756768463159,8.13,196.5,196.49,4.51088868]
[1756768463361,138.77,196.5,196.49,4.51088868]
[1756768463662,139.27,196.5,196.4,7.99]
[1756768463962,130.58,196.49,196.41,4.51271635]
[1756768464161,8.13,196.48,196.42,4.51271635]
[1756768464356,8.13,196.48,196.43,4.51271635]
[1756768464554,8.13,196.48,196.44,4.51271635]
[1756768464761,130.58,196.49,196.45,4.51271635]
[1756768465063,8.13,196.47,196.46,4.51271635]
[1756768465464,138.69,196.47,196.46,4.51271635]
[1756768465961,8.13,196.52,196.46,4.51271635]
[1756768466155,8.13,196.52,196.34,111.87312937]
[1756768466156,342.14,196.55,196.47,12.50209122]
[1756768466361,342.14,196.55,196.48,4.51209122]
[1756768466362,130.72,196.54,196.48,4.51209122]
[1756768466564,342.14,196.55,196.49,12.50209122]
[1756768466770,130.72,196.54,196.51,7.99]
[1756768466964,130.72,196.54,196.52,4.51209122]
[1756768467161,130.72,196.54,196.53,4.51209122]
[1756768467663,130.64,196.54,196.53,12.49920395]
[1756768467862,138.77,196.54,196.53,4.50920395]
[1756768469263,138.81,196.54,196.53,4.50920395]
[1756768469463,130.68,196.54,196.53,4.50920395]
[1756768469659,130.58,196.54,196.53,4.50920395]
[1756768469859,138.71,196.54,196.53,4.50920395]
[1756768470067,138.69,196.54,196.44,7.99]
[1756768470267,138.69,196.54,196.45,4.51374475]
[1756768470467,8.13,196.54,196.46,4.51374475]
[1756768470665,130.58,196.53,196.47,4.51374475]
[1756768470869,130.58,196.53,196.44,7.99]
[1756768471169,130.56,196.52,196.45,4.5171148]
[1756768471368,130.56,196.52,196.46,4.5171148]
[1756768471568,138.69,196.52,196.47,4.5171148]
[1756768471762,138.69,196.52,196.48,4.5171148]
[1756768471962,138.69,196.52,196.49,4.52011106]
[1756768472163,138.69,196.52,196.5,4.52011106]
[1756768472363,138.69,196.52,196.51,4.52011106]
[1756768472863,8.13,196.52,196.51,4.52011106]
[1756768473068,342.14,196.55,196.51,12.51011106]
[1756768473368,130.42,196.54,196.52,4.52011106]
[1756768473568,342.14,196.55,196.53,4.52011106]
[1756768473867,342.14,196.55,196.54,4.52011106]
[1756768474064,472.56,196.55,196.54,4.52011106]
[1756768474469,350.27,196.55,196.54,4.52011106]
[1756768474670,480.61,196.55,196.54,4.52011106]
[1756768475970,342.14,196.55,196.54,4.52011106]
[1756768476165,472.44,196.55,196.54,4.52011106]
[1756768476565,342.14,196.55,196.54,4.52011106]
[1756768476968,472.46,196.55,196.54,4.52011106]
[1756768477373,472.44,196.55,196.54,4.52011106]
[1756768477769,342.14,196.55,196.54,12.51011106]
[1756768478170,472.4,196.55,196.54,12.51011106]
[1756768479171,472.36,196.55,196.54,4.52011106]
[1756768479371,342.14,196.55,196.54,4.52011106]
[1756768479571,472.32,196.55,196.54,4.52011106]
[1756768479873,472.28,196.55,196.54,4.52011106]
[1756768480372,350.15,196.55,196.54,4.52011106]
[1756768480672,480.27,196.55,196.54,4.52011106]
[1756768481466,350.15,196.55,196.47,7.74]
[1756768481671,130.08,196.54,196.48,4.52171606]
[1756768481866,350.15,196.55,196.49,4.52171606]
[1756768482072,130.08,196.53,196.5,4.52171606]
[1756768482273,350.15,196.55,196.51,4.52171606]
[1756768482573,138.05,196.54,196.52,4.52171606]
[1756768482766,138.05,196.54,196.53,4.52171606]
[1756768483173,8.01,196.54,196.53,4.52171606]
[1756768483375,138.03,196.54,196.53,4.52171606]
[1756768484665,138.01,196.54,196.53,4.52171606]
[1756768485068,137.91,196.54,196.53,4.52171606]
[1756768486679,137.89,196.54,196.53,4.52171606]
[1756768487582,8.01,196.54,196.53,4.52171606]
[1756768487780,137.77,196.54,196.53,4.52171606]
[1756768487980,8.01,196.54,196.53,4.52171606]
[1756768488180,137.71,196.54,196.53,4.52171606]
[1756768488680,8.01,196.54,196.53,4.52171606]
[1756768488980,137.71,196.54,196.53,4.52171606]
[1756768489582,350.15,196.55,196.53,4.52171606]
[1756768489783,129.66,196.54,196.47,7.74]
[1756768489982,129.66,196.54,196.48,4.52158131]
[1756768490284,129.6,196.53,196.5,7.74]
[1756768490476,129.6,196.53,196.51,4.52158131]
[1756768490781,129.6,196.53,196.52,4.52158131]
[1756768491978,137.61,196.53,196.47,7.74]
[1756768492181,137.61,196.53,196.48,12.26141883]
[1756768492381,129.6,196.53,196.49,4.52141883]
[1756768492576,8.01,196.52,196.5,4.52141883]
[1756768492783,342.14,196.55,196.51,4.52141883]
[1756768492981,342.14,196.55,196.52,4.52141883]
[1756768493186,8.01,196.54,196.53,4.52141883]
[1756768493673,7.95,196.52,196.39,7.74]
[1756768493875,129.58,196.51,196.4,1.82686152]
[1756768494075,7.95,196.5,196.39,7.74]
[1756768494578,129.58,196.49,196.39,7.74]
[1756768495174,7.95,196.53,196.4,3.64732204]
[1756768495377,129.54,196.52,196.41,7.74]
[1756768495785,129.54,196.51,196.41,7.74]
[1756768495987,129.54,196.5,196.43,2.28053437]
[1756768496174,129.54,196.5,196.44,7.74]
[1756768496779,129.54,196.5,196.43,2.28053437]
[1756768496780,7.95,196.49,196.4,10.02053437]
[1756768497389,7.95,196.49,196.4,7.74]
[1756768497583,2.28053437,196.48,196.4,7.74]
[1756768497778,137.47,196.47,196.4,7.74]
[1756768497986,129.52,196.47,196.35,10.02053437]
[1756768498290,7.95,196.46,196.35,10.02053437]
[1756768498490,7.95,196.46,196.36,1.82871882]
[1756768498686,7.95,196.46,196.35,10.02053437]
[1756768499600,47.84,196.45,196.35,10.02053437]
[1756768499799,10.23053437,196.46,196.35,10.02053437]
[1756768499999,7.96,196.43,196.35,10.02053437]
[1756768500193,7.96,196.43,196.31,7.74]
[1756768500194,2.28053437,196.4,196.31,7.74]
[1756768500393,7.96,196.39,196.31,7.74]
[1756768500996,12.9,196.38,196.32,7.74]
[1756768501203,7.96,196.45,196.32,7.74]
[1756768501204,16.06,196.37,196.32,7.74]
[1756768501502,16.06,196.36,196.32,7.74]
[1756768501701,17.4,196.35,196.32,7.74]
[1756768501895,17.12,196.34,196.32,7.74]
[1756768502100,24.56,196.33,196.32,7.74]
[1756768502301,24.56,196.33,196.26,2.28053437]
[1756768502602,24.56,196.33,196.27,7.74]
[1756768502800,7.96,196.36,196.27,7.74]
[1756768503104,10.4,196.35,196.27,7.74]
[1756768503403,7.96,196.36,196.27,7.74]
[1756768503602,10.4,196.35,196.29,2.28053437]
[1756768503808,17.2,196.34,196.3,7.74]
[1756768504008,17.2,196.33,196.29,2.28053437]
[1756768504403,7.96,196.4,196.3,7.74]
[1756768504605,12.42,196.39,196.3,7.74]
[1756768505010,2.28053437,196.37,196.26,2.28053437]
[1756768505202,7.96,196.36,196.27,7.74]
[1756768505401,22.02,196.35,196.27,7.74]
[1756768505607,7.96,196.36,196.27,7.74]
[1756768506209,10.22,196.35,196.27,7.74]
[1756768506505,19.44,196.34,196.27,7.74]
[1756768506710,7.96,196.36,196.27,7.74]
[1756768507007,28.2,196.33,196.27,7.74]
[1756768507207,36.52,196.32,196.27,7.74]
[1756768507403,44.42,196.31,196.27,7.74]
[1756768507604,51.64,196.31,196.3,7.74]
[1756768508003,7.96,196.39,196.3,7.74]
[1756768508200,5.6625957,196.5,196.32,2.28053437]
[1756768508407,7.61,196.47,196.36,10.12053437]
[1756768508805,2.28053437,196.48,196.36,10.12053437]
[1756768508806,7.61,196.45,196.36,10.12053437]
[1756768509209,100.78,196.44,196.36,10.12053437]
[1756768510012,129.7,196.43,196.36,10.12053437]
[1756768510305,7.61,196.45,196.36,10.12053437]
[1756768510507,2.28053437,196.42,196.32,7.84]
[1756768510710,7.61,196.41,196.31,2.28053437]
[1756768510913,2.28053437,196.42,196.28,10.12053437]
[1756768511209,7.61,196.4,196.28,10.12053437]
[1756768511412,27.66,196.39,196.28,10.12053437]
[1756768511612,7.61,196.38,196.28,10.12053437]
[1756768511905,7.61,196.38,196.28,7.84]
[1756768512511,37.44,196.37,196.28,7.84]
[1756768512813,7.61,196.36,196.28,7.84]
[1756768513611,47.06,196.35,196.24,7.84]
[1756768513812,7.61,196.36,196.24,7.84]
[1756768514011,94.94,196.35,196.24,7.84]
[1756768514308,7.61,196.34,196.24,7.84]
[1756768514908,7.61,196.38,196.24,7.84]
[1756768515206,129.72,196.37,196.26,7.84]
[1756768516003,7.61,196.38,196.26,7.84]
[1756768516206,129.68,196.37,196.26,7.84]
[1756768516407,7.61,196.36,196.26,7.84]
[1756768517212,129.78,196.35,196.26,7.84]
[1756768517910,7.61,196.34,196.26,7.84]
[1756768518105,7.61,196.34,196.22,7.84]
[1756768518312,47.72,196.33,196.22,7.84]
[1756768518914,7.61,196.34,196.22,7.84]
[1756768519115,37.1,196.33,196.22,7.84]